[Event "45th FIDE Womens Olympiad 2024"]
[Site "Budapest"]
[Date "2024.09.13"]
[Round "3.149"]
[White "Stojkovska, Monika"]
[Black "Viana, Valeria"]
[Result "1-0"]
[ECO "B12"]
[WhiteElo "2043"]
[BlackElo "1882"]
[Annotator "NA RC"]
[PlyCount "97"]
[EventDate "2024.09.05"]
[EventType "team-tourn"]
[EventCountry "HUN"]
[SourceTitle "playchess.com"]
[Source "ChessBase"]
[SourceQuality "1"]
[WhiteTeam "North Macedonia"]
[BlackTeam "Honduras"]
[WhiteTeamCountry "MKD"]
[BlackTeamCountry "HON"]
[TimeControl "40/5400+30:1800+30"]

1. e4 c6 2. d4 d5 3. e5 c5 4. Nf3 cxd4 5. Nxd4 Nc6 6. Nxc6 bxc6 7. Bd3 e6 8. O-O Ne7 9. Re1 Ng6 10. c3 a5 11. Bc2 Be7 12. Qg4 Qc7 13. Nd2 Bd7 14. Nf3 O-O-O 15. b4 f5 16. Qd4 c5 17. bxc5 Qxc5 18. Bd3 Qxd4 19. cxd4 Bb4 20. Bd2 Bxd2 21. Nxd2 Ba4 22. Nb3 Bxb3 23. axb3 Kb7 24. Rxa5 Rc8 25. Ba6+ Kb6 26. Bxc8 Kxa5 27. Bxe6 Ne7 28. Rc1 Kb6 29. Bd7 Ra8 30. Ba4 g5 31. Kf1 h5 32. Ke2 Rf8 33. Kd3 f4 34. Bd7 Ra8 35. Ba4 Rf8 36. Rc5 Rd8 37. Kc3 g4 38. Rb5+ Ka6 39. Kb4 h4 40. Ra5+ Kb6 41. Bb5 Nf5 42. Ra6+ Kb7 43. Kc5 g3 44. fxg3 h3 45. gxh3 f3 46. Rf6 Rc8+ 47. Kxd5 Rd8+ 48. Ke4 Nxd4 49. Bc4 1-0

[Event "45th FIDE Womens Olympiad 2024"]
[Site "Budapest"]
[Date "2024.09.13"]
[Round "3.150"]
[White "Torres Hernandez, Leslie Carolin"]
[Black "Manova, Ivana"]
[Result "1/2-1/2"]
[ECO "C90"]
[WhiteElo "1891"]
[BlackElo "2031"]
[Annotator "NA RC"]
[PlyCount "118"]
[EventDate "2024.09.05"]
[EventType "team-tourn"]
[EventCountry "HUN"]
[SourceTitle "playchess.com"]
[Source "ChessBase"]
[SourceQuality "1"]
[WhiteTeam "Honduras"]
[BlackTeam "North Macedonia"]
[WhiteTeamCountry "HON"]
[BlackTeamCountry "MKD"]
[TimeControl "40/5400+30:1800+30"]

1. e4 e5 2. Nf3 Nc6 3. Bb5 a6 4. Ba4 Nf6 5. O-O Be7 6. d3 b5 7. Bb3 d6 8. h3 Na5 9. Re1 O-O 10. Nbd2 Nxb3 11. axb3 c5 12. Nf1 Re8 13. c4 Bd7 14. Ne3 g6 15. g4 h6 16. Nh2 Bc6 17. Qf3 Nh7 18. Ng2 Bg5 19. Qg3 Qf6 20. h4 Bxc1 21. Raxc1 a5 22. Rc2 a4 23. bxa4 Rxa4 24. Qe3 Kg7 25. Rf1 Rea8 26. f4 exf4 27. Rxf4 Ra1+ 28. Nf1 Qe5 29. Rcf2 R8a7 30. Qf3 Qe6 31. Nge3 bxc4 32. dxc4 R1a4 33. Nd2 Rb4 34. b3 Re7 35. Nd5 Bxd5 36. exd5 Qe1+ 37. Kg2 Rbb7 38. Ne4 Rbd7 39. Nxd6 f6 40. Ne4 g5 41. hxg5 hxg5 42. Rxf6 Qxe4 43. Rc6 Qe5 44. Qd3 Qe4+ 45. Qxe4 Rxe4 46. Kg3 Re3+ 47. Rf3 Rxf3+ 48. Kxf3 Nf6 49. Rxc5 Rb7 50. Rb5 Rxb5 51. cxb5 Nxd5 52. Ke4 Nc3+ 53. Kf5 Nxb5 54. Kxg5 Nd4 55. b4 Nb5 56. Kf5 Nd4+ 57. Ke4 Nb5 58. Kd5 Kg6 59. Kc4 Na3+ 1/2-1/2

[Event "45th FIDE Womens Olympiad 2024"]
[Site "Budapest"]
[Date "2024.09.13"]
[Round "3.151"]
[White "Zhezhovska, Monika"]
[Black "Cruz, Bitia"]
[Result "1-0"]
[ECO "D53"]
[WhiteElo "2106"]
[BlackElo "1736"]
[Annotator "NA RC"]
[PlyCount "57"]
[EventDate "2024.09.05"]
[EventType "team-tourn"]
[EventCountry "HUN"]
[SourceTitle "playchess.com"]
[Source "ChessBase"]
[SourceQuality "1"]
[WhiteTeam "North Macedonia"]
[BlackTeam "Honduras"]
[WhiteTeamCountry "MKD"]
[BlackTeamCountry "HON"]
[TimeControl "40/5400+30:1800+30"]

1. d4 d5 2. c4 c6 3. Nc3 Nf6 4. Nf3 e6 5. Bg5 Nbd7 6. e3 Be7 7. Qc2 dxc4 8. Bxc4 b5 9. Bd3 b4 10. Ne4 Bb7 11. Rc1 Rc8 12. Bxf6 Nxf6 13. Nc5 Qb6 14. Ne5 Ba8 15. O-O h6 16. Bg6 Bxc5 17. Bxf7+ Ke7 18. dxc5 Qc7 19. f4 h5 20. Qc4 Nd5 21. e4 Nxf4 22. Ng6+ Kxf7 23. Nxf4 Qd7 24. Rcd1 Qe8 25. Nxe6+ Kg6 26. Rd6 Qe7 27. Nf8+ Kg5 28. Rg6+ Kh4 29. e5# 1-0

[Event "45th FIDE Womens Olympiad 2024"]
[Site "Budapest"]
[Date "2024.09.13"]
[Round "3.152"]
[White "Oseguera, Suhey"]
[Black "Eftovska, Lea"]
[Result "0-1"]
[ECO "C49"]
[WhiteElo "1590"]
[BlackElo "1839"]
[Annotator "NA"]
[PlyCount "82"]
[EventDate "2024.09.05"]
[EventType "team-tourn"]
[EventCountry "HUN"]
[SourceTitle "playchess.com"]
[Source "ChessBase"]
[SourceQuality "1"]
[WhiteTeam "Honduras"]
[BlackTeam "North Macedonia"]
[WhiteTeamCountry "HON"]
[BlackTeamCountry "MKD"]
[TimeControl "40/5400+30:1800+30"]

1. e4 e5 2. Nf3 Nc6 3. Nc3 Nf6 4. Bb5 Bb4 5. O-O Bxc3 6. Bxc6 bxc6 7. bxc3 d6 8. d3 O-O 9. Rb1 h6 10. h3 Re8 11. Nh2 d5 12. f3 Ba6 13. Qe1 Nh5 14. Ng4 Qe7 15. Kh2 Rad8 16. Ne3 Bc8 17. g4 Nf4 18. Rg1 g5 19. Nf5 Bxf5 20. gxf5 f6 21. Bxf4 exf4 22. Qh4 Kh7 23. Qh5 Rg8 24. Rb7 Rg7 25. h4 dxe4 26. fxe4 Rdg8 27. hxg5 fxg5 28. Rxa7 g4 29. Rh1 Rg5 30. Qh4 h5 31. Kg2 f3+ 32. Kf1 g3 33. Rg1 g2+ 34. Kf2 Qc5+ 35. d4 Qxa7 36. Kxf3 Qa5 37. f6 Qxc3+ 38. Kf4 Rg4+ 39. Qxg4 Rxg4+ 40. Kf5 Qf3+ 41. Ke5 Qxe4# 0-1

[Event "45th FIDE Womens Olympiad 2024"]
[Site "Budapest"]
[Date "2024.09.13"]
[Round "3.153"]
[White "Ravelomanana, Sabine"]
[Black "Dornbusch, Tatiana"]
[Result "1/2-1/2"]
[ECO "C55"]
[WhiteElo "1926"]
[BlackElo "2212"]
[Annotator "RC"]
[PlyCount "84"]
[EventDate "2024.09.05"]
[EventType "team-tourn"]
[EventCountry "HUN"]
[SourceTitle "playchess.com"]
[Source "ChessBase"]
[SourceQuality "1"]
[WhiteTeam "Madagascar"]
[BlackTeam "Monaco"]
[WhiteTeamCountry "MAD"]
[BlackTeamCountry "MNC"]
[TimeControl "40/5400+30:1800+30"]

1. e4 e5 2. Nf3 Nc6 3. Bc4 Nf6 4. d3 Be7 5. O-O O-O 6. Re1 d6 7. a4 Be6 8. Nbd2 Qd7 9. a5 a6 10. c3 Rae8 11. Qb3 Nd8 12. d4 exd4 13. Nxd4 d5 14. exd5 Bxd5 15. Bxd5 Nxd5 16. N2f3 Bd6 17. Kf1 Rxe1+ 18. Kxe1 Re8+ 19. Kf1 Nf6 20. Bg5 Ne4 21. Bxd8 Nc5 22. Qc2 Qxd8 23. Rd1 Qf6 24. Qf5 Qxf5 25. Nxf5 Bf8 26. b4 Ne4 27. Rd7 g6 28. Ne3 Nxc3 29. Rxc7 Bxb4 30. Rxb7 Bxa5 31. Nc4 Bd8 32. Ra7 a5 33. Nxa5 Bb6 34. Ra6 Bc5 35. Nb3 Bf8 36. Rc6 Ne4 37. h3 Ra8 38. Rc2 Bg7 39. g3 h6 40. Kg2 Rb8 41. Nbd2 Nc3 42. Nc4 Re8 1/2-1/2

[Event "45th FIDE Womens Olympiad 2024"]
[Site "Budapest"]
[Date "2024.09.13"]
[Round "3.154"]
[White "Zvereva, Marija"]
[Black "Raharimanana, Faratiana"]
[Result "1-0"]
[ECO "A04"]
[WhiteElo "2035"]
[BlackElo "1815"]
[Annotator "NA RC"]
[PlyCount "79"]
[EventDate "2024.09.05"]
[EventType "team-tourn"]
[EventCountry "HUN"]
[SourceTitle "playchess.com"]
[Source "ChessBase"]
[SourceQuality "1"]
[WhiteTeam "Monaco"]
[BlackTeam "Madagascar"]
[WhiteTeamCountry "MNC"]
[BlackTeamCountry "MAD"]
[TimeControl "40/5400+30:1800+30"]

1. e4 c5 2. Nf3 Nc6 3. g3 g6 4. Bg2 Bg7 5. O-O Nf6 6. Re1 O-O 7. c3 e5 8. d4 cxd4 9. cxd4 d6 10. h3 h6 11. Nc3 Re8 12. Be3 b6 13. Rc1 a6 14. dxe5 dxe5 15. Qxd8 Nxd8 16. Na4 Bb7 17. Nxb6 Rb8 18. Nd2 Ne6 19. Nbc4 Ng5 20. Nd6 Red8 21. Nxb7 Rxb7 22. f4 Ngh7 23. Nc4 exf4 24. gxf4 Nd7 25. e5 Rbb8 26. b3 Nhf8 27. Na5 Re8 28. Nc6 Rb5 29. Bf1 Rb6 30. Bxb6 Nxb6 31. Bxa6 Ra8 32. Nb4 Ne6 33. Rc6 Nd7 34. Rc8+ Rxc8 35. Bxc8 Ndc5 36. Bxe6 Nxe6 37. Nd5 Bf8 38. b4 Nd4 39. Kf2 Nc2 40. Rc1 1-0

[Event "45th FIDE Womens Olympiad 2024"]
[Site "Budapest"]
[Date "2024.09.13"]
[Round "3.155"]
[White "Randriatsiferana, Dimbiharentsoa Chris"]
[Black "Berezovsky, Fiorina"]
[Result "0-1"]
[ECO "B25"]
[WhiteElo "1736"]
[BlackElo "1976"]
[Annotator "NA RC"]
[PlyCount "64"]
[EventDate "2024.09.05"]
[EventType "team-tourn"]
[EventCountry "HUN"]
[SourceTitle "playchess.com"]
[Source "ChessBase"]
[SourceQuality "1"]
[WhiteTeam "Madagascar"]
[BlackTeam "Monaco"]
[WhiteTeamCountry "MAD"]
[BlackTeamCountry "MNC"]
[TimeControl "40/5400+30:1800+30"]

1. e4 c5 2. Nc3 Nc6 3. g3 g6 4. Bg2 Bg7 5. Nge2 Nf6 6. O-O d6 7. d3 O-O 8. f4 a6 9. a4 Qc7 10. h3 Nd4 11. g4 e6 12. Ng3 Rb8 13. Be3 b5 14. h4 b4 15. g5 bxc3 16. bxc3 Nc6 17. gxf6 Bxf6 18. h5 Bxc3 19. hxg6 fxg6 20. Rb1 Rb4 21. Rxb4 Nxb4 22. Qb1 d5 23. Ne2 d4 24. Bxd4 cxd4 25. Nxc3 Qxc3 26. Rf2 e5 27. f5 gxf5 28. Bh3 f4 29. Bxc8 Rxc8 30. Qd1 Rc7 31. Qh5 Qe1+ 32. Kg2 Rg7+ 0-1

[Event "45th FIDE Womens Olympiad 2024"]
[Site "Budapest"]
[Date "2024.09.13"]
[Round "3.156"]
[White "Dubois, Martine"]
[Black "Tsinjoviniavo, Aina Mahasambatra"]
[Result "0-1"]
[ECO "C00"]
[WhiteElo "1816"]
[BlackElo "1662"]
[Annotator "NA"]
[PlyCount "84"]
[EventDate "2024.09.05"]
[EventType "team-tourn"]
[EventCountry "HUN"]
[SourceTitle "playchess.com"]
[Source "ChessBase"]
[SourceQuality "1"]
[WhiteTeam "Monaco"]
[BlackTeam "Madagascar"]
[WhiteTeamCountry "MNC"]
[BlackTeamCountry "MAD"]
[TimeControl "40/5400+30:1800+30"]

1. e4 c5 2. c3 e6 3. Qe2 Nc6 4. g3 Nge7 5. Bg2 g6 6. d3 Bg7 7. Be3 d6 8. Qd2 Ne5 9. Na3 Ng4 10. Bg5 h6 11. Bxe7 Qxe7 12. f4 O-O 13. h3 Nf6 14. Ne2 Rb8 15. O-O e5 16. Nc4 b5 17. Ne3 h5 18. Nd5 Nxd5 19. exd5 exf4 20. Nxf4 b4 21. Rae1 bxc3 22. bxc3 Qg5 23. Re3 h4 24. Kh2 hxg3+ 25. Rxg3 Qe5 26. d4 cxd4 27. c4 Ba6 28. Re1 Qf6 29. Rf3 Bh6 30. Re4 Bxc4 31. Qc2 Rfc8 32. Nxg6 d3 33. Qa4 Qxg6 34. Rg3 Bg5 35. Reg4 f6 36. h4 Qh7 37. Bh3 Rb2+ 38. Rg2 Rxg2+ 39. Bxg2 Kf8 40. Be4 f5 41. Bxd3 Bxd3 42. Rxg5 Rc4 0-1

[Event "45th FIDE Womens Olympiad 2024"]
[Site "Budapest"]
[Date "2024.09.13"]
[Round "3.157"]
[White "Arakhamia-Grant, Ketevan"]
[Black "Lopez L., Dairyn D."]
[Result "1-0"]
[ECO "B06"]
[WhiteElo "2263"]
[BlackElo "1740"]
[Annotator "RC"]
[PlyCount "87"]
[EventDate "2024.09.05"]
[EventType "team-tourn"]
[EventCountry "HUN"]
[SourceTitle "playchess.com"]
[Source "ChessBase"]
[SourceQuality "1"]
[WhiteTeam "Scotland"]
[BlackTeam "Guatemala"]
[WhiteTeamCountry "SCO"]
[BlackTeamCountry "GUA"]
[TimeControl "40/5400+30:1800+30"]

1. e4 d6 2. d4 g6 3. Nc3 Bg7 4. Be3 a6 5. Qd2 b5 6. f3 b4 7. Nd1 a5 8. a3 Ba6 9. axb4 Bxf1 10. Kxf1 a4 11. Ne2 Nd7 12. Kf2 e6 13. Ndc3 Nb6 14. Qd3 d5 15. Qb5+ Qd7 16. Qxd7+ Kxd7 17. Nf4 Ne7 18. Nd3 Nc6 19. e5 Rhb8 20. b5 Na5 21. Nc5+ Kc8 22. N5xa4 Nxa4 23. Rxa4 Nc4 24. Rha1 Rxa4 25. Nxa4 Rxb5 26. b3 Nb6 27. Nc5 Bf8 28. Nd3 Nd7 29. Ke2 Kb8 30. g4 Rb6 31. f4 Rc6 32. Kd2 Rb6 33. Rf1 h6 34. f5 exf5 35. gxf5 g5 36. h4 gxh4 37. Rh1 Kb7 38. Rxh4 Ra6 39. f6 Ra5 40. Bxh6 Ba3 41. Be3 Bf8 42. Rh7 Ra1 43. Rxf7 Ba3 44. Rxd7 1-0

[Event "45th FIDE Womens Olympiad 2024"]
[Site "Budapest"]
[Date "2024.09.13"]
[Round "3.158"]
[White "Raymundo, Deycy Daniela"]
[Black "Roy, Ali"]
[Result "0-1"]
[ECO "C01"]
[WhiteElo "1728"]
[BlackElo "1961"]
[Annotator "NA RC"]
[PlyCount "120"]
[EventDate "2024.09.05"]
[EventType "team-tourn"]
[EventCountry "HUN"]
[SourceTitle "playchess.com"]
[Source "ChessBase"]
[SourceQuality "1"]
[WhiteTeam "Guatemala"]
[BlackTeam "Scotland"]
[WhiteTeamCountry "GUA"]
[BlackTeamCountry "SCO"]
[TimeControl "40/5400+30:1800+30"]

1. e4 e6 2. d4 d5 3. exd5 exd5 4. Bd3 Nf6 5. Nf3 Be7 6. h3 Nc6 7. c3 O-O 8. O-O Be6 9. Bg5 Re8 10. Re1 h6 11. Bh4 Nh5 12. Bxe7 Qxe7 13. Nbd2 Nf4 14. Bf5 Qf6 15. Bxe6 Rxe6 16. Rxe6 Qxe6 17. Nf1 Re8 18. Ng3 Qf6 19. Qd2 Nxh3+ 20. gxh3 Qxf3 21. Re1 Rxe1+ 22. Qxe1 Kf8 23. Qd2 Ne7 24. Qe3 Qxe3 25. fxe3 f5 26. Nh5 Kf7 27. Nf4 g5 28. Nd3 b6 29. Ne5+ Ke6 30. Kf2 c5 31. b3 cxd4 32. cxd4 h5 33. Kf3 g4+ 34. hxg4 fxg4+ 35. Kf4 Nf5 36. Nd3 g3 37. Ne1 h4 38. Kg4 Nxe3+ 39. Kxh4 g2 40. Nf3 Kf5 41. Kg3 Ke4 42. Kf2 a5 43. Kg3 Nf5+ 44. Kxg2 Nxd4 45. Ne1 Nb5 46. Kf2 Nc3 47. a4 d4 48. Nf3 Nd1+ 49. Ke2 d3+ 50. Kd2 Kxf3 51. Kxd3 Ne3 52. Kd4 Nc2+ 53. Kc4 Nb4 54. Kb5 Nd5 55. Kc6 Ke4 56. Kd6 Kd4 57. Kc6 Kc3 58. Kxd5 Kxb3 59. Kc6 Kxa4 60. Kxb6 Kb4 0-1

[Event "45th FIDE Womens Olympiad 2024"]
[Site "Budapest"]
[Date "2024.09.13"]
[Round "3.159"]
[White "Cooke, Suzie G."]
[Black "Santiago Sontay, Jenny Fernanda"]
[Result "1-0"]
[ECO "D00"]
[WhiteElo "1941"]
[BlackElo "1773"]
[Annotator "NA RC"]
[PlyCount "81"]
[EventDate "2024.09.05"]
[EventType "team-tourn"]
[EventCountry "HUN"]
[SourceTitle "playchess.com"]
[Source "ChessBase"]
[SourceQuality "1"]
[WhiteTeam "Scotland"]
[BlackTeam "Guatemala"]
[WhiteTeamCountry "SCO"]
[BlackTeamCountry "GUA"]
[TimeControl "40/5400+30:1800+30"]

1. d4 d5 2. Bf4 Nf6 3. e3 e6 4. Bd3 Bd6 5. Bg3 b6 6. Nd2 Bb7 7. Ngf3 O-O 8. c3 c5 9. Qb1 Nc6 10. Ne5 h6 11. f4 Qc7 12. O-O Rac8 13. Rf3 a6 14. Bh4 Ne8 15. g4 Be7 16. Rh3 Nd6 17. Bxe7 Nxe7 18. g5 Nef5 19. gxh6 Nxh6 20. Ndf3 Ne4 21. Ng5 cxd4 22. exd4 b5 23. Nxe4 dxe4 24. Bxe4 Bxe4 25. Qxe4 Nf5 26. Re1 Qd6 27. Ng4 b4 28. Qg2 f6 29. Qe4 Kf7 30. Ne3 bxc3 31. Nxf5 exf5 32. Qb7+ Rc7 33. Qb3+ Kg6 34. bxc3 Rfc8 35. Re2 Rc4 36. Rg2+ Kf7 37. Rhg3 Qxf4 38. Rxg7+ Ke6 39. Re2+ Kd6 40. Qa3+ Kd5 41. Qxa6 1-0

[Event "45th FIDE Womens Olympiad 2024"]
[Site "Budapest"]
[Date "2024.09.13"]
[Round "3.160"]
[White "Mazariegos, Silvia Carolina"]
[Black "Bhatia, Kanishka"]
[Result "0-1"]
[ECO "D00"]
[WhiteElo "1878"]
[BlackElo "1908"]
[Annotator "NA RC"]
[PlyCount "54"]
[EventDate "2024.09.05"]
[EventType "team-tourn"]
[EventCountry "HUN"]
[SourceTitle "playchess.com"]
[Source "ChessBase"]
[SourceQuality "1"]
[WhiteTeam "Guatemala"]
[BlackTeam "Scotland"]
[WhiteTeamCountry "GUA"]
[BlackTeamCountry "SCO"]
[TimeControl "40/5400+30:1800+30"]

1. d4 Nf6 2. e3 d5 3. Bd3 g6 4. Nd2 Bg7 5. Qe2 O-O 6. f4 c5 7. c3 Nc6 8. Ngf3 Bg4 9. O-O Nh5 10. Qf2 cxd4 11. cxd4 Bd7 12. Ne5 Nf6 13. h3 Nb4 14. Bb1 Bb5 15. Re1 Nd7 16. Ndf3 Nxe5 17. Nxe5 Bxe5 18. dxe5 Nd3 19. Qe2 Nxe1 20. Qxb5 Rc8 21. Bd2 Nc2 22. Qb3 Nxa1 23. Qd3 Qb6 24. Bc3 Rxc3 25. Qxc3 Qc6 26. Qd3 Qc1+ 27. Kh2 Qxb2 0-1

[Event "45th FIDE Womens Olympiad 2024"]
[Site "Budapest"]
[Date "2024.09.13"]
[Round "3.161"]
[White "Chuemsakul, Sarocha"]
[Black "Kanyamarala, Trisha"]
[Result "1-0"]
[ECO "E25"]
[WhiteElo "1906"]
[BlackElo "2179"]
[Annotator "RC"]
[PlyCount "79"]
[EventDate "2024.09.05"]
[EventType "team-tourn"]
[EventCountry "HUN"]
[SourceTitle "playchess.com"]
[Source "ChessBase"]
[SourceQuality "1"]
[WhiteTeam "Thailand"]
[BlackTeam "Ireland"]
[WhiteTeamCountry "THA"]
[BlackTeamCountry "IRL"]
[TimeControl "40/5400+30:1800+30"]

1. d4 Nf6 2. c4 e6 3. Nc3 Bb4 4. f3 d5 5. a3 Bxc3+ 6. bxc3 c5 7. cxd5 Nxd5 8. dxc5 Qa5 9. e4 Nf6 10. Be3 O-O 11. Qb3 Na6 12. Bxa6 Qxa6 13. Rd1 Bd7 14. Rd6 Bc6 15. Ne2 Rfd8 16. Kf2 Rxd6 17. cxd6 Bxe4 18. c4 Bc6 19. Nc3 Rc8 20. Rd1 Nd7 21. a4 Qa5 22. Nb5 a6 23. Qc3 Qd8 24. Na7 Bxa4 25. Nxc8 Bxd1 26. Ne7+ Kf8 27. Qd3 Ba4 28. Qxh7 Ke8 29. Qh8+ Nf8 30. c5 Qa5 31. Qxg7 Qb4 32. Qh8 Qc4 33. Kg3 Qc2 34. c6 Bxc6 35. Bh6 Qc5 36. Qxf8+ Kd7 37. Nxc6 Qxc6 38. Qe7+ Kc8 39. Bg5 Kb8 40. d7 1-0

[Event "45th FIDE Womens Olympiad 2024"]
[Site "Budapest"]
[Date "2024.09.13"]
[Round "3.162"]
[White "O`Gorman, Alice"]
[Black "Prommuang, Araya"]
[Result "1/2-1/2"]
[ECO "B33"]
[WhiteElo "1996"]
[BlackElo "1753"]
[Annotator "NA RC"]
[PlyCount "113"]
[EventDate "2024.09.05"]
[EventType "team-tourn"]
[EventCountry "HUN"]
[SourceTitle "playchess.com"]
[Source "ChessBase"]
[SourceQuality "1"]
[WhiteTeam "Ireland"]
[BlackTeam "Thailand"]
[WhiteTeamCountry "IRL"]
[BlackTeamCountry "THA"]
[TimeControl "40/5400+30:1800+30"]

1. e4 c5 2. Nf3 e6 3. d4 cxd4 4. Nxd4 Nf6 5. Nc3 Nc6 6. Ndb5 d6 7. Bf4 e5 8. Bg5 a6 9. Bxf6 gxf6 10. Na3 b5 11. Nd5 Be7 12. Bd3 Nd4 13. c3 Ne6 14. Nc2 Nc7 15. Nce3 Be6 16. Bc2 O-O 17. Qf3 Kh8 18. Nxe7 Qxe7 19. Nd5 Bxd5 20. exd5 e4 21. Qh5 Rg8 22. O-O-O Rae8 23. f3 Rg5 24. Qh4 f5 25. fxe4 Rxg2 26. Qf4 fxe4 27. Rhe1 Qg5 28. Qxg5 Rxg5 29. Rxe4 Rxe4 30. Bxe4 f5 31. Bf3 Kg7 32. Rd4 Kf6 33. a4 Rg1+ 34. Kd2 Rb1 35. b3 Rxb3 36. Kc2 Ra3 37. Rh4 Ke5 38. Rxh7 Nxd5 39. Bxd5 Kxd5 40. axb5 axb5 41. h4 Ke4 42. h5 Ke5 43. Rb7 Ra2+ 44. Kd3 Rh2 45. Rxb5+ Ke6 46. Rb8 Rxh5 47. Re8+ Kf7 48. Ra8 Kf6 49. Rd8 Ke7 50. Rb8 Rh4 51. Ra8 Ke6 52. c4 d5 53. cxd5+ Kxd5 54. Ra5+ Ke6 55. Ke3 Kf6 56. Ra8 Rg4 57. Kf3 1/2-1/2

[Event "45th FIDE Womens Olympiad 2024"]
[Site "Budapest"]
[Date "2024.09.13"]
[Round "3.163"]
[White "Mekarapiruk, Nathasha"]
[Black "Mirza, Diana"]
[Result "1-0"]
[ECO "B43"]
[WhiteElo "1728"]
[BlackElo "1962"]
[Annotator "NA RC"]
[PlyCount "79"]
[EventDate "2024.09.05"]
[EventType "team-tourn"]
[EventCountry "HUN"]
[SourceTitle "playchess.com"]
[Source "ChessBase"]
[SourceQuality "1"]
[WhiteTeam "Thailand"]
[BlackTeam "Ireland"]
[WhiteTeamCountry "THA"]
[BlackTeamCountry "IRL"]
[TimeControl "40/5400+30:1800+30"]

1. e4 c5 2. Nf3 e6 3. d4 cxd4 4. Nxd4 a6 5. Nc3 Qc7 6. Bd3 Nf6 7. O-O Bc5 8. Nb3 Be7 9. f4 d6 10. Qf3 Nc6 11. Bd2 O-O 12. Rae1 Nb4 13. e5 Nxd3 14. cxd3 dxe5 15. fxe5 Nd7 16. d4 Nb6 17. Qh5 g6 18. Qh6 Nd5 19. Rf3 f5 20. Rh3 Rf7 21. Nxd5 exd5 22. e6 Rg7 23. Bf4 Qd8 24. Be5 Bf6 25. Rhe3 Bxe5 26. Rxe5 Re7 27. Nd2 Qb6 28. Qe3 Qxb2 29. a3 Qb6 30. Nf3 Qd6 31. Ng5 b5 32. Nf7 Qb6 33. Nh6+ Kg7 34. Nxf5+ gxf5 35. Qg5+ Kh8 36. Qxe7 Qxd4+ 37. Kh1 h6 38. Qf8+ Kh7 39. Qf7+ Kh8 40. e7 1-0

[Event "45th FIDE Womens Olympiad 2024"]
[Site "Budapest"]
[Date "2024.09.13"]
[Round "3.164"]
[White "Gora, Antonina"]
[Black "Tawankanjana, Sasinat"]
[Result "1-0"]
[ECO "C55"]
[WhiteElo "1943"]
[BlackElo "1612"]
[Annotator "NA RC"]
[PlyCount "81"]
[EventDate "2024.09.05"]
[EventType "team-tourn"]
[EventCountry "HUN"]
[SourceTitle "playchess.com"]
[Source "ChessBase"]
[SourceQuality "1"]
[WhiteTeam "Ireland"]
[BlackTeam "Thailand"]
[WhiteTeamCountry "IRL"]
[BlackTeamCountry "THA"]
[TimeControl "40/5400+30:1800+30"]

1. e4 e5 2. Nf3 Nc6 3. Bc4 Nf6 4. d3 Be7 5. c3 d6 6. Nbd2 a6 7. Bb3 O-O 8. O-O Be6 9. Re1 Bxb3 10. Qxb3 Na5 11. Qc2 c5 12. Nf1 Nc6 13. Ng3 Re8 14. Nf5 Bf8 15. h3 h6 16. a4 Kh7 17. Qb3 Qd7 18. Ne3 Na5 19. Qa2 Kg8 20. Bd2 Nc6 21. Nh4 Kh7 22. Nc4 Qd8 23. a5 g6 24. Nb6 Qc7 25. Nxa8 Rxa8 26. Nf3 Rc8 27. b4 cxb4 28. cxb4 Kg7 29. Rac1 Qd7 30. Qb2 Na7 31. d4 Rxc1 32. Qxc1 exd4 33. Bxh6+ Kg8 34. Bxf8 Kxf8 35. Nxd4 Kg7 36. Nf5+ gxf5 37. Qg5+ Kh7 38. Qxf6 Qe6 39. Qh4+ Kg6 40. Re3 f6 41. Rg3+ 1-0

[Event "45th FIDE Womens Olympiad 2024"]
[Site "Budapest"]
[Date "2024.09.13"]
[Round "3.165"]
[White "Partac, Elena"]
[Black "Miladi, Amen"]
[Result "1-0"]
[ECO "B42"]
[WhiteElo "2078"]
[BlackElo "1851"]
[Annotator "NA RC"]
[PlyCount "77"]
[EventDate "2024.09.05"]
[EventType "team-tourn"]
[EventCountry "HUN"]
[SourceTitle "playchess.com"]
[Source "ChessBase"]
[SourceQuality "1"]
[WhiteTeam "Moldova"]
[BlackTeam "Tunisia"]
[WhiteTeamCountry "MDA"]
[BlackTeamCountry "TUN"]
[TimeControl "40/5400+30:1800+30"]

1. e4 c5 2. Nf3 e6 3. d4 cxd4 4. Nxd4 a6 5. Bd3 Nf6 6. O-O Qc7 7. Qe2 d6 8. c4 Be7 9. Nc3 O-O 10. Be3 Nc6 11. f4 Rd8 12. Rac1 Bd7 13. Nb3 Rac8 14. Na4 Qb8 15. Nb6 Rc7 16. g4 d5 17. e5 dxc4 18. Bxc4 Ne8 19. a3 Na7 20. Nxd7 Rdxd7 21. f5 Rc6 22. fxe6 fxe6 23. Qf2 h6 24. Bxe6+ Rxe6 25. Qf7+ Kh7 26. Qxe6 Qd8 27. Bxa7 Rd3 28. Bb6 Qd5 29. Qxd5 Rxd5 30. Bc5 Bg5 31. Rce1 Rd3 32. Na5 b5 33. Rd1 Rxd1 34. Rxd1 Nc7 35. Nb7 Ne6 36. Bb6 Bf4 37. Nd8 Nxd8 38. Rxd8 Bxe5 39. Bd4 1-0

[Event "45th FIDE Womens Olympiad 2024"]
[Site "Budapest"]
[Date "2024.09.13"]
[Round "3.166"]
[White "Mefteh, Meyssem"]
[Black "Verbin, Valentina"]
[Result "1/2-1/2"]
[ECO "E12"]
[WhiteElo "1834"]
[BlackElo "2071"]
[Annotator "NA RC"]
[PlyCount "100"]
[EventDate "2024.09.05"]
[EventType "team-tourn"]
[EventCountry "HUN"]
[SourceTitle "playchess.com"]
[Source "ChessBase"]
[SourceQuality "1"]
[WhiteTeam "Tunisia"]
[BlackTeam "Moldova"]
[WhiteTeamCountry "TUN"]
[BlackTeamCountry "MDA"]
[TimeControl "40/5400+30:1800+30"]

1. d4 Nf6 2. c4 e6 3. Nf3 b6 4. a3 Bb7 5. Nc3 d5 6. Bg5 Be7 7. Bxf6 Bxf6 8. cxd5 exd5 9. Qb3 O-O 10. e3 c6 11. Bd3 Na6 12. Qc2 h6 13. O-O Nc7 14. Na4 Ne6 15. Rac1 Rc8 16. Rfd1 Qe7 17. b4 Rc7 18. Nd2 Rfc8 19. Nb3 Qe8 20. Nd2 Be7 21. Qb3 Rb8 22. Rc3 Rcc8 23. Qc2 c5 24. bxc5 Bc6 25. Nb2 bxc5 26. dxc5 Bf6 27. Rb3 Nxc5 28. Rxb8 Rxb8 29. Qxc5 Bxb2 30. Rb1 a5 31. Qxa5 Ra8 32. Qc5 Bxa3 33. Qc3 Be7 34. Qe5 Qd8 35. Nf3 Bf6 36. Qf5 g6 37. Qg4 Ra4 38. Qg3 Kg7 39. Rd1 Qe7 40. Bc2 Rc4 41. Bb3 Rb4 42. Ba2 h5 43. Nd4 Bxd4 44. exd4 Ba4 45. Ra1 Rxd4 46. h3 Qf6 47. Bxd5 Rxd5 48. Rxa4 Rg5 49. Qe3 Re5 50. Re4 Rxe4 1/2-1/2

[Event "45th FIDE Womens Olympiad 2024"]
[Site "Budapest"]
[Date "2024.09.13"]
[Round "3.167"]
[White "Mihailova, Alina"]
[Black "Gamha, Yasmine"]
[Result "1-0"]
[ECO "E04"]
[WhiteElo "1969"]
[BlackElo "1679"]
[Annotator "NA RC"]
[PlyCount "73"]
[EventDate "2024.09.05"]
[EventType "team-tourn"]
[EventCountry "HUN"]
[SourceTitle "playchess.com"]
[Source "ChessBase"]
[SourceQuality "1"]
[WhiteTeam "Moldova"]
[BlackTeam "Tunisia"]
[WhiteTeamCountry "MDA"]
[BlackTeamCountry "TUN"]
[TimeControl "40/5400+30:1800+30"]

1. d4 Nf6 2. c4 e6 3. g3 d5 4. Nf3 dxc4 5. Bg2 Bb4+ 6. Bd2 a5 7. Qc2 Bxd2+ 8. Nbxd2 b5 9. a4 c6 10. O-O Bb7 11. Rfd1 O-O 12. e4 Na6 13. e5 Nd5 14. Ne4 Nab4 15. Qd2 Rb8 16. Nc5 Ba8 17. Ng5 Qe7 18. Nge4 Rfd8 19. Ra3 Nd3 20. Nxd3 cxd3 21. axb5 Rxb5 22. Rxa5 Rbb8 23. Nd6 Rd7 24. Rda1 Bb7 25. Qxd3 Nb4 26. Qd2 Nd5 27. Ra7 Qd8 28. b4 Qb6 29. Bxd5 cxd5 30. R7a5 Qc7 31. Rc1 Qd8 32. Rac5 h6 33. Qc3 Ba6 34. b5 Bb7 35. Rc7 Kf8 36. Rxd7 Qxd7 37. Qc7 1-0